[Event "Petrov Memorial Rapid"]
[Site "Jurmala"]
[Date "2015.03.08"]
[Round "8"]
[White "Naiditsch, Arkadij"]
[Black "Meskovs, Nikita"]
[Result "1-0"]
[ECO "B42"]
[WhiteElo "2711"]
[BlackElo "2450"]
[Annotator "Robot 8"]
[PlyCount "57"]
[EventDate "2015.??.??"]
[EventCountry "LAT"]
[TimeControl "900+6"]

1. e4 c5 2. Nf3 e6 3. d4 cxd4 4. Nxd4 a6 5. Bd3 Nf6 6. O-O Qc7 7. Kh1 Be7 8. f4
d6 9. c4 Nc6 10. Nxc6 bxc6 11. Nc3 O-O 12. b3 e5 13. Qe1 exf4 14. Bxf4 Nd7 15.
Qg3 Ne5 16. c5 Be6 17. Na4 Rfd8 18. Nb6 Ra7 19. Nc4 Bxc4 20. Bxe5 dxe5 21. Bxc4
Rf8 22. Rxf7 Rxf7 23. Rf1 Bxc5 24. Rxf7 Qxf7 25. Qxe5 Bf8 26. Bxf7+ Rxf7 27.
Qe6 a5 28. g3 g6 29. Kg2 1-0

[Event "Petrov Memorial Rapid"]
[Site "Jurmala"]
[Date "2015.03.08"]
[Round "8"]
[White "Gelfand, Boris"]
[Black "Ivanchuk, Vasil"]
[Result "1/2-1/2"]
[ECO "D27"]
[WhiteElo "2747"]
[BlackElo "2731"]
[Annotator "Robot 8"]
[PlyCount "76"]
[EventDate "2015.??.??"]
[EventCountry "LAT"]
[TimeControl "900+6"]

1. d4 d5 2. c4 dxc4 3. e3 e6 4. Bxc4 Nf6 5. Nf3 c5 6. O-O a6 7. dxc5 Qxd1 8.
Rxd1 Bxc5 9. Be2 b6 10. Nfd2 Bb7 11. Nc4 Nbd7 12. Nc3 Bc6 13. a3 a5 14. Nd6+
Ke7 15. Ndb5 Rhd8 16. Bd2 Ne5 17. Be1 Rxd1 18. Rxd1 Rd8 19. Rxd8 Kxd8 20. Na4
Nfd7 21. Nxc5 Nxc5 22. Bc3 f6 23. f3 Bd5 24. b4 axb4 25. axb4 Na4 26. Ba1 Bc4
27. Kf1 Bxe2+ 28. Kxe2 Nc6 29. Nc3 Nxc3+ 30. Bxc3 b5 31. Kd3 Kd7 32. f4 Ke7 33.
g4 g6 34. e4 f5 35. gxf5 exf5 36. Ke3 Ke6 37. Kd3 Kd6 38. Ke3 Ke6 1/2-1/2

[Event "Petrov Memorial Rapid"]
[Site "Jurmala"]
[Date "2015.03.08"]
[Round "8"]
[White "Fridman, Daniel"]
[Black "Socko, Monika"]
[Result "1-0"]
[ECO "E11"]
[WhiteElo "2647"]
[BlackElo "2463"]
[Annotator "Robot 8"]
[PlyCount "151"]
[EventDate "2015.??.??"]
[EventCountry "LAT"]
[TimeControl "900+6"]

1. d4 Nf6 2. Nf3 e6 3. c4 Bb4+ 4. Bd2 Qe7 5. Nc3 O-O 6. g3 d6 7. Bg2 Bxc3 8.
Bxc3 Ne4 9. Rc1 Nxc3 10. Rxc3 Nc6 11. O-O e5 12. d5 Nb8 13. b4 a5 14. Ra3 b6
15. Nd2 Na6 16. bxa5 Nc5 17. Nb3 Ba6 18. axb6 cxb6 19. Qc2 Qc7 20. Rc1 g6 21.
Qc3 Bb7 22. Nd2 Rxa3 23. Qxa3 Ra8 24. Qb2 Ra6 25. Ne4 Nxe4 26. Bxe4 Qc5 27. Bd3
Kg7 28. Rb1 Bc8 29. Kg2 Bd7 30. h4 h6 31. f4 Qe3 32. c5 b5 33. cxd6 f6 34. fxe5
fxe5 35. Qc1 Qd4 36. Bxb5 Qe4+ 37. Kf2 Rxd6 38. Bxd7 Rxd7 39. Rb3 Qxd5 40. Qb2
Qc5+ 41. Kg2 h5 42. Rb5 Qc6+ 43. Kh2 Rf7 44. Qxe5+ Kh7 45. Qc5 Qe6 46. Rb2 Qf6
47. Qb6 Qf1 48. e4 Qe1 49. Qd4 Qc1 50. a4 Qa1 51. e5 Qe1 52. a5 Rf1 53. Qd5 Qc3
54. Qd2 Qc6 55. Qg2 Qc4 56. Rb7+ Kh8 57. Rb8+ Kh7 58. Qb7+ Rf7 59. Qg2 Qd4 60.
Rb7 Rxb7 61. Qxb7+ Kh6 62. e6 Qe3 63. a6 Qxe6 64. a7 Qa2+ 65. Kg1 Qa1+ 66. Kg2
Qa2+ 67. Kf3 Qa3+ 68. Ke4 Qa4+ 69. Ke5 Qa1+ 70. Ke6 Qa2+ 71. Ke7 Qa3+ 72. Ke8
Qa4+ 73. Kf8 Qa3+ 74. Kg8 Qa2+ 75. Qf7 Qe6 76. a8=Q 1-0

[Event "Petrov Memorial Rapid"]
[Site "Jurmala"]
[Date "2015.03.08"]
[Round "8"]
[White "Gleizerov, Evgeny"]
[Black "Malakhov, Vladimir"]
[Result "1/2-1/2"]
[ECO "D15"]
[WhiteElo "2531"]
[BlackElo "2706"]
[Annotator "Robot 8"]
[PlyCount "27"]
[EventDate "2015.??.??"]
[EventCountry "LAT"]
[TimeControl "900+6"]

1. d4 d5 2. c4 c6 3. Nf3 Nf6 4. Nc3 a6 5. Ne5 Nbd7 6. Bf4 dxc4 7. Nxc4 b5 8.
Ne5 Bb7 9. e3 e6 10. Be2 Be7 11. O-O O-O 12. Bf3 Nd5 13. Nxd5 cxd5 14. Rc1
1/2-1/2

[Event "Petrov Memorial Rapid"]
[Site "Jurmala"]
[Date "2015.03.08"]
[Round "8"]
[White "Tomashevsky, Evgeny"]
[Black "Dobrov, Vladimir"]
[Result "1/2-1/2"]
[ECO "A88"]
[WhiteElo "2745"]
[BlackElo "2490"]
[Annotator "Robot 8"]
[PlyCount "136"]
[EventDate "2015.??.??"]
[EventCountry "LAT"]
[TimeControl "900+6"]

1. d4 f5 2. g3 Nf6 3. Bg2 g6 4. Nf3 Bg7 5. O-O O-O 6. c4 d6 7. Nc3 c6 8. b4 Kh8
9. Rb1 Nbd7 10. d5 Nb6 11. dxc6 bxc6 12. Nd4 Bd7 13. Nxc6 Bxc6 14. Bxc6 Rc8 15.
b5 Nxc4 16. Qa4 Na5 17. Bd2 Nxc6 18. bxc6 Qc7 19. Rb7 Qxc6 20. Qxc6 Rxc6 21.
Rxe7 Ng8 22. Re3 Rb8 23. Rd1 Rb2 24. Nd5 Be5 25. Nb4 Rb6 26. Nd3 Rb1 27. Rxb1
Rxb1+ 28. Kg2 Bf6 29. a3 Kg7 30. Bb4 d5 31. Re6 Bd4 32. e3 Bb6 33. Rd6 Rb3 34.
Nf4 Nf6 35. Nxd5 Nxd5 36. Rxd5 h5 37. h3 Kf6 38. Rd6+ Kf7 39. Rc6 Rb2 40. Kf3
g5 41. Rc3 g4+ 42. hxg4 hxg4+ 43. Kg2 Ke6 44. Bc5 Kd5 45. Bxb6 axb6 46. Rc8 b5
47. Rd8+ Kc4 48. Rf8 Rb3 49. Rxf5 Rxa3 50. Rf4+ Kc3 51. Rxg4 b4 52. Rg8 b3 53.
Rc8+ Kd3 54. Rb8 Kc2 55. Rc8+ Kd3 56. Rd8+ Kc2 57. Rc8+ Kb1 58. Kf3 b2 59. Rb8
Kc2 60. Rxb2+ Kxb2 61. Ke4 Kc3 62. g4 Ra4+ 63. Kf5 Kd3 64. g5 Ra5+ 65. Kf6 Ke4
66. g6 Ra6+ 67. Kf7 Kf5 68. e4+ Kxe4 1/2-1/2

[Event "Petrov Memorial Rapid"]
[Site "Jurmala"]
[Date "2015.03.08"]
[Round "8"]
[White "Ehlvest, Jaan"]
[Black "Novikov, Stanislav"]
[Result "1-0"]
[ECO "B06"]
[WhiteElo "2547"]
[BlackElo "2550"]
[Annotator "Robot 8"]
[PlyCount "89"]
[EventDate "2015.??.??"]
[EventCountry "LAT"]
[TimeControl "900+6"]

1. d4 g6 2. e4 Bg7 3. Nc3 c6 4. Bc4 b5 5. Bb3 d6 6. Qf3 e6 7. Nge2 a5 8. a4 b4
9. Nd1 Ba6 10. c3 Nd7 11. Bf4 d5 12. cxb4 axb4 13. Ne3 Ngf6 14. Ng3 dxe4 15.
Nxe4 Nxe4 16. Qxe4 O-O 17. Rd1 c5 18. Be5 Nf6 19. Qf3 cxd4 20. Rxd4 Nd5 21.
Bxg7 Kxg7 22. Bxd5 exd5 23. Kd2 Qb6 24. Qf4 Rfe8 25. Rc1 Re4 26. Rxe4 dxe4 27.
Qe5+ Qf6 28. Qxf6+ Kxf6 29. Nd5+ Ke5 30. Nxb4 Bc8 31. Rc5+ Kd4 32. Rc7 Be6 33.
a5 f5 34. a6 f4 35. Nc2+ Ke5 36. a7 h5 37. b4 Kd6 38. Rg7 g5 39. b5 Kc5 40.
Rc7+ Kd6 41. b6 Bd5 42. Nd4 e3+ 43. fxe3 fxe3+ 44. Ke2 Bxg2 45. Nb5+ 1-0

[Event "Petrov Memorial Rapid"]
[Site "Jurmala"]
[Date "2015.03.08"]
[Round "8"]
[White "Karjakin, Sergey"]
[Black "Sakaev, Konstantin"]
[Result "1-0"]
[ECO "C66"]
[WhiteElo "2757"]
[BlackElo "2594"]
[Annotator "Robot 8"]
[PlyCount "83"]
[EventDate "2015.??.??"]
[EventCountry "LAT"]
[TimeControl "900+6"]

1. e4 e5 2. Nf3 Nc6 3. Bb5 Nf6 4. d3 d6 5. O-O Bd7 6. Re1 g6 7. d4 Bg7 8. d5
Nb8 9. Bxd7+ Nbxd7 10. c4 O-O 11. Nc3 h5 12. Bg5 Qe8 13. b4 Nh7 14. Bd2 a6 15.
Rb1 Qd8 16. g3 f5 17. exf5 gxf5 18. Nh4 Qe8 19. c5 dxc5 20. bxc5 Nxc5 21. Be3
b6 22. Bxc5 bxc5 23. Na4 Ng5 24. Nxc5 e4 25. f4 Qe7 26. Nd3 Nh7 27. Ng6 Qd6 28.
Nxf8 Rxf8 29. Ne5 h4 30. Nc6 hxg3 31. hxg3 Ng5 32. Kg2 Nf3 33. Rh1 Bh6 34. Ne5
Nxe5 35. fxe5 Qg6 36. Qh5 Qxh5 37. Rxh5 Bd2 38. Rbh1 Kg7 39. Rh7+ Kg6 40. Rxc7
Rb8 41. d6 Rb2 42. Kh3 1-0

[Event "Petrov Memorial Rapid"]
[Site "Jurmala"]
[Date "2015.03.08"]
[Round "9"]
[White "Khalifman, Alexander"]
[Black "Naiditsch, Arkadij"]
[Result "1-0"]
[ECO "A13"]
[WhiteElo "2613"]
[BlackElo "2711"]
[Annotator "Robot 8"]
[PlyCount "73"]
[EventDate "2015.??.??"]
[EventCountry "LAT"]
[TimeControl "900+6"]

1. Nf3 {[%emt 0:00:00]} Nf6 {[%emt 0:00:01]} 2. c4 {[%emt 0:00:00]} e6 {[%emt
0:00:10]} 3. g3 {[%emt 0:00:00]} d5 {[%emt 0:00:02]} 4. Bg2 {[%emt 0:00:03]}
dxc4 {[%emt 0:00:47]} 5. Qa4+ {[%emt 0:00:02]} Nbd7 {[%emt 0:00:02]} 6. Qxc4 {
[%emt 0:00:02]} c5 {[%emt 0:00:06]} 7. d3 {[%emt 0:00:16]} a6 {[%emt 0:01:22]}
8. Qb3 {[%emt 0:00:08]} Be7 {[%emt 0:01:26]} 9. a4 {[%emt 0:00:51]} Nd5 {[%emt
0:02:24]} 10. a5 {[%emt 0:00:57]} Nb8 {[%emt 0:00:07]} 11. Nbd2 {[%emt 0:00:52]
} Nc6 {[%emt 0:00:03]} 12. Nc4 {[%emt 0:00:02]} O-O {[%emt 0:00:20]} 13. O-O {
[%emt 0:00:02]} Bd7 {[%emt 0:01:22]} 14. Rd1 {[%emt 0:01:29]} Rc8 {[%emt 0:00:
55]} 15. e4 {[%emt 0:02:03]} Ndb4 {[%emt 0:00:56]} 16. Be3 {[%emt 0:00:03]} f5
{[%emt 0:04:54]} 17. Nfe5 {[%emt 0:02:43]} Nxe5 {[%emt 0:00:48]} 18. Nxe5 {
[%emt 0:00:02]} Kh8 {[%emt 0:00:13]} 19. d4 {[%emt 0:00:38]} c4 {[%emt 0:00:01]
} 20. Nxc4 {[%emt 0:00:10]} fxe4 {[%emt 0:00:01]} 21. Nb6 {[%emt 0:01:11]} Rc7
{[%emt 0:00:27]} 22. Bxe4 {[%emt 0:00:24]} Bc6 {[%emt 0:00:05]} 23. Qxe6 {
[%emt 0:00:12]} Bxe4 {[%emt 0:00:21]} 24. Qxe4 {[%emt 0:00:02]} Bg5 {[%emt 0:
00:14]} 25. Bxg5 {[%emt 0:00:25]} Qxg5 {[%emt 0:00:02]} 26. d5 {[%emt 0:00:02]}
Rc2 {[%emt 0:00:14]} 27. Nd7 {[%emt 0:00:50]} Rd8 {[%emt 0:00:11]} 28. Qxb4 {
[%emt 0:00:56]} Qf5 {[%emt 0:00:01]} 29. Rd2 {[%emt 0:00:11]} Rxd2 {[%emt 0:00:
02]} 30. Qxd2 {[%emt 0:00:01]} Rxd7 {[%emt 0:00:01]} 31. d6 {[%emt 0:00:03]} h5
{[%emt 0:00:05]} 32. Rd1 {[%emt 0:00:19]} h4 {[%emt 0:00:05]} 33. Qd5 {[%emt 0:
00:04]} Qg6 {[%emt 0:00:15]} 34. Rd4 {[%emt 0:00:04]} Qb1+ {[%emt 0:00:03]} 35.
Rd1 {[%emt 0:01:00]} Qg6 {[%emt 0:00:02]} 36. Kg2 {[%emt 0:00:09]} Qf6 {[%emt
0:00:18]} 37. Qh5+ {[%emt 0:00:11]} 1-0

[Event "Petrov Memorial Rapid"]
[Site "Jurmala"]
[Date "2015.03.08"]
[Round "9"]
[White "Shomoev, Anton"]
[Black "Fridman, Daniel"]
[Result "0-1"]
[ECO "C42"]
[WhiteElo "2578"]
[BlackElo "2647"]
[Annotator "Robot 8"]
[PlyCount "144"]
[EventDate "2015.??.??"]
[EventCountry "LAT"]
[TimeControl "900+6"]

1. e4 e5 2. Nf3 Nf6 3. Nxe5 d6 4. Nf3 Nxe4 5. d4 d5 6. Bd3 Nc6 7. O-O Be7 8.
Nc3 Nxc3 9. bxc3 O-O 10. Rb1 Rb8 11. h3 h6 12. Bf4 Bd6 13. Qd2 Qf6 14. Bxd6
Qxd6 15. Rfe1 Be6 16. Ne5 Nxe5 17. Rxe5 f6 18. Re3 Qf4 19. Qe2 Bf7 20. Re7 Qd6
21. Bf5 Rbe8 22. Rxe8 Rxe8 23. Qd2 b6 24. Qc1 Re7 25. Bd3 g5 26. Ra1 Kg7 27. a3
Qc6 28. Qd2 Qd6 29. Qd1 Bg6 30. Qf3 Be4 31. Bxe4 dxe4 32. Qf5 Qc6 33. Re1 Qxc3
34. Rxe4 Rxe4 35. Qxe4 Qa1+ 36. Kh2 Qxa3 37. c4 Qd6+ 38. Kg1 a5 39. Qe3 a4 40.
c5 bxc5 41. dxc5 Qd1+ 42. Kh2 Qb3 43. Qe7+ Qf7 44. Qe3 Kf8 45. Qd3 Qe7 46. Qa6
Qxc5 47. Qxf6+ Ke8 48. Qg6+ Kd7 49. Qf7+ Kd6 50. Qf8+ Kd5 51. Qf5+ Kc4 52. Qc2+
Kb5 53. Qe2+ Kb6 54. Qb2+ Kc6 55. g3 a3 56. Qa2 Kb6 57. Qb3+ Ka5 58. Kg2 c6 59.
Kg1 Qc1+ 60. Kg2 Qc5 61. Kg1 h5 62. h4 g4 63. Qa2 Ka4 64. Qb1 Qc4 65. Qd1+ Kb5
66. Qb1+ Ka6 67. Qb8 a2 68. Qa8+ Kb5 69. Qb7+ Ka4 70. Qa7+ Kb3 71. Qb6+ Kc2 72.
Qa5 Kb1 0-1

[Event "Petrov Memorial Rapid"]
[Site "Jurmala"]
[Date "2015.03.08"]
[Round "9"]
[White "Lysyj, Igor"]
[Black "Fedorov, Alexei"]
[Result "0-1"]
[ECO "E97"]
[WhiteElo "2691"]
[BlackElo "2566"]
[Annotator "Robot 8"]
[PlyCount "92"]
[EventDate "2015.??.??"]
[EventCountry "LAT"]
[TimeControl "900+6"]

1. d4 {[%emt 0:00:00]} Nf6 {[%emt 0:00:00]} 2. c4 {[%emt 0:00:08]} g6 {[%emt 0:
00:00]} 3. Nc3 {[%emt 0:00:02]} Bg7 {[%emt 0:00:03]} 4. e4 {[%emt 0:00:02]} d6
{[%emt 0:00:02]} 5. Nf3 {[%emt 0:00:03]} O-O {[%emt 0:00:04]} 6. Be2 {[%emt 0:
00:01]} e5 {[%emt 0:00:38]} 7. O-O {[%emt 0:00:03]} Nc6 {[%emt 0:00:03]} 8. d5
{[%emt 0:00:01]} Ne7 {[%emt 0:00:02]} 9. Re1 {[%emt 0:00:02]} a5 {[%emt 0:00:
41]} 10. Be3 {[%emt 0:00:03]} Ng4 {[%emt 0:00:03]} 11. Bg5 {[%emt 0:00:03]} f6
{[%emt 0:00:04]} 12. Bd2 {[%emt 0:00:03]} f5 {[%emt 0:00:12]} 13. exf5 {[%emt
0:01:10]} gxf5 {[%emt 0:01:15]} 14. Ng5 {[%emt 0:01:01]} Nf6 {[%emt 0:00:09]}
15. Qc2 {[%emt 0:00:05]} c6 {[%emt 0:01:15]} 16. Rad1 {[%emt 0:00:51]} h6 {
[%emt 0:00:25]} 17. Nf3 {[%emt 0:00:47]} Ng6 {[%emt 0:01:40]} 18. dxc6 {[%emt
0:00:58]} bxc6 {[%emt 0:00:03]} 19. Bc1 {[%emt 0:00:29]} Ra7 {[%emt 0:01:07]}
20. Bf1 {[%emt 0:00:17]} Re7 {[%emt 0:01:20]} 21. a3 {[%emt 0:02:42]} Qc7 {
[%emt 0:01:04]} 22. b4 {[%emt 0:00:14]} axb4 {[%emt 0:00:03]} 23. axb4 {[%emt
0:00:01]} d5 {[%emt 0:00:52]} 24. cxd5 {[%emt 0:01:12]} cxd5 {[%emt 0:00:04]}
25. Qb3 {[%emt 0:02:00]} Be6 {[%emt 0:00:11]} 26. Nb5 {[%emt 0:01:06]} Qb8 {
[%emt 0:00:16]} 27. Bb2 {[%emt 0:00:01]} d4 {[%emt 0:00:44]} 28. Qa4 {[%emt 0:
00:24]} Ne4 {[%emt 0:00:43]} 29. Qa6 {[%emt 0:00:14]} Nf4 {[%emt 0:00:37]} 30.
Ra1 {[%emt 0:00:25]} Bd5 {[%emt 0:00:22]} 31. Na7 {[%emt 0:00:12]} Re6 {[%emt
0:00:41]} 32. Qa5 {[%emt 0:00:30]} Qb7 {[%emt 0:00:39]} 33. g3 {[%emt 0:00:22]}
d3 {[%emt 0:01:18]} 34. Re3 {[%emt 0:01:00]} Ne2+ {[%emt 0:00:17]} 35. Bxe2 {
[%emt 0:00:09]} dxe2 {[%emt 0:00:01]} 36. Qb5 {[%emt 0:00:30]} Rb6 {[%emt 0:00:
23]} 37. Qxe2 {[%emt 0:00:02]} Ra8 {[%emt 0:00:13]} 38. Rea3 {[%emt 0:00:01]}
Rxb4 {[%emt 0:00:09]} 39. Bc1 {[%emt 0:01:09]} Nc5 {[%emt 0:00:21]} 40. Nh4 {
[%emt 0:00:10]} Nb3 {[%emt 0:00:11]} 41. Nxf5 {[%emt 0:00:09]} Nxa1 {[%emt 0:
00:04]} 42. Qg4 {[%emt 0:00:12]} Rb1 {[%emt 0:00:05]} 43. Rc3 {[%emt 0:00:05]}
Kh7 {[%emt 0:00:13]} 44. Nh4 {[%emt 0:00:05]} Qf7 {[%emt 0:00:05]} 45. Nc6 {
[%emt 0:00:04]} Rf8 {[%emt 0:00:09]} 46. f3 {[%emt 0:00:07]} e4 {[%emt 0:00:03]
} 0-1

[Event "Petrov Memorial Rapid"]
[Site "Jurmala"]
[Date "2015.03.08"]
[Round "9"]
[White "Sakaev, Konstantin"]
[Black "Ehlvest, Jaan"]
[Result "1/2-1/2"]
[ECO "A41"]
[WhiteElo "2594"]
[BlackElo "2547"]
[Annotator "Robot 8"]
[PlyCount "56"]
[EventDate "2015.??.??"]
[EventCountry "LAT"]
[TimeControl "900+6"]

1. d4 {[%emt 0:00:00]} d6 {[%emt 0:00:00]} 2. Nf3 {[%emt 0:00:07]} g6 {[%emt 0:
00:00]} 3. c4 {[%emt 0:00:03]} f5 {[%emt 0:00:03]} 4. b4 {[%emt 0:00:42]} Bg7 {
[%emt 0:00:24]} 5. Bb2 {[%emt 0:00:02]} Nf6 {[%emt 0:01:32]} 6. e3 {[%emt 0:00:
04]} O-O {[%emt 0:00:11]} 7. Be2 {[%emt 0:00:33]} Qe8 {[%emt 0:00:07]} 8. Qb3 {
[%emt 0:00:17]} Kh8 {[%emt 0:00:15]} 9. O-O {[%emt 0:00:06]} c6 {[%emt 0:01:14]
} 10. b5 {[%emt 0:01:01]} Nbd7 {[%emt 0:02:40]} 11. Nc3 {[%emt 0:04:01]} e5 {
[%emt 0:03:53]} 12. bxc6 {[%emt 0:00:01]} bxc6 {[%emt 0:00:01]} 13. Qa4 {[%emt
0:00:05]} c5 {[%emt 0:00:59]} 14. dxe5 {[%emt 0:00:45]} dxe5 {[%emt 0:00:13]}
15. Nd5 {[%emt 0:01:18]} Nxd5 {[%emt 0:01:49]} 16. cxd5 {[%emt 0:00:02]} Nb6 {
[%emt 0:00:22]} 17. Qxe8 {[%emt 0:00:45]} Rxe8 {[%emt 0:00:01]} 18. Rac1 {
[%emt 0:00:41]} e4 {[%emt 0:00:58]} 19. Bxg7+ {[%emt 0:00:02]} Kxg7 {[%emt 0:
00:01]} 20. Nd2 {[%emt 0:00:06]} Nxd5 {[%emt 0:00:42]} 21. Rxc5 {[%emt 0:00:09]
} Be6 {[%emt 0:00:01]} 22. Nb3 {[%emt 0:01:13]} Rec8 {[%emt 0:00:27]} 23. Nd4 {
[%emt 0:00:40]} Bf7 {[%emt 0:00:05]} 24. Rfc1 {[%emt 0:00:06]} Rxc5 {[%emt 0:
00:04]} 25. Rxc5 {[%emt 0:00:01]} Rb8 {[%emt 0:00:03]} 26. h4 {[%emt 0:00:49]}
Rb7 {[%emt 0:00:20]} 27. Bb5 {[%emt 0:02:14]} Rc7 {[%emt 0:00:15]} 28. Rc6 {
[%emt 0:00:55]} Rxc6 {[%emt 0:00:15]} 1/2-1/2

[Event "Petrov Memorial Rapid"]
[Site "Jurmala"]
[Date "2015.03.08"]
[Round "9"]
[White "Rapport, Richard"]
[Black "Gleizerov, Evgeny"]
[Result "1-0"]
[ECO "A00"]
[WhiteElo "2709"]
[BlackElo "2531"]
[Annotator "Robot 8"]
[PlyCount "104"]
[EventDate "2015.??.??"]
[EventCountry "LAT"]
[TimeControl "900+6"]

1. g3 e5 2. Nf3 e4 3. Nh4 d5 4. d3 Be7 5. dxe4 dxe4 6. Qxd8+ Bxd8 7. Nc3 f5 8.
Bh3 Ne7 9. Bg5 O-O 10. O-O-O Nbc6 11. f3 exf3 12. exf3 h6 13. Bxe7 Nxe7 14. Ng2
Ng6 15. Rhe1 f4 16. Bxc8 Rxc8 17. g4 c6 18. Rd6 Nh4 19. Nxh4 Bxh4 20. Red1 Rc7
21. Ne4 Rff7 22. c4 Kh7 23. Kc2 Rce7 24. Kd3 Bf6 25. b4 Be5 26. Rd8 Bc7 27. Ra8
Rd7+ 28. Ke2 Rxd1 29. Kxd1 a6 30. Ke2 Rd7 31. a3 Be5 32. a4 Rd4 33. Re8 Bf6 34.
Nxf6+ gxf6 35. Re4 Rd7 36. Rxf4 Kg7 37. h4 Rd8 38. h5 Kf7 39. Ke3 Rd7 40. Rd4
Re7+ 41. Kf4 Kg7 42. b5 cxb5 43. cxb5 axb5 44. axb5 Kf7 45. b6 Re1 46. Rd7+ Ke6
47. Rxb7 Rb1 48. Kg3 Rb4 49. Rh7 Rxb6 50. Rxh6 Rb5 51. Rh7 Rb1 52. Ra7 Kd5 1-0

[Event "Petrov Memorial Rapid"]
[Site "Jurmala"]
[Date "2015.03.08"]
[Round "9"]
[White "Mamedyarov, Shakhriyar"]
[Black "Gelfand, Boris"]
[Result "1/2-1/2"]
[ECO "D11"]
[WhiteElo "2756"]
[BlackElo "2747"]
[Annotator "Robot 8"]
[PlyCount "173"]
[EventDate "2015.??.??"]
[EventCountry "LAT"]
[TimeControl "900+6"]

1. d4 d5 2. c4 c6 3. Nf3 Nf6 4. Nbd2 Bf5 5. Nh4 Be6 6. e3 g6 7. b3 Bg7 8. Bb2
O-O 9. Rc1 Ne4 10. Bd3 Nxd2 11. Qxd2 Nd7 12. cxd5 cxd5 13. Nf3 Qb6 14. Ba3 Bf6
15. h3 Rfc8 16. g4 Rxc1+ 17. Qxc1 Qd8 18. Ke2 Rc8 19. Qd2 Nb8 20. Rc1 Rxc1 21.
Qxc1 Qc8 22. Qxc8+ Bxc8 23. Ne5 Kf8 24. f4 Bg7 25. Kd2 f5 26. g5 Bxe5 27. dxe5
Nc6 28. Kc3 Ke8 29. Bc5 b6 30. Ba3 a5 31. h4 Be6 32. Be2 Kd7 33. h5 Bf7 34. h6
Na7 35. Kd2 Be6 36. Bb2 Kc7 37. Bc3 Nc6 38. Kc2 Bf7 39. Kb2 Be6 40. Ka3 Bf7 41.
Bd3 Be6 42. b4 axb4+ 43. Bxb4 Bf7 44. Bc3 Be6 45. Bb5 Bd7 46. Ba4 Be6 47. Bb4
Bd7 48. Bc3 Be6 49. Kb2 Bd7 50. Bb3 Be6 51. Kc2 b5 52. Kb2 Kb6 53. Kc2 Kc5 54.
a3 Bf7 55. Kd3 e6 56. Be1 Kb6 57. Kc3 Na5 58. Ba2 Nc4 59. Kb4 Kc6 60. Bf2 Nd2
61. a4 bxa4 62. Kxa4 Be8 63. Kb4 Ne4 64. Be1 Kb6 65. Bb1 Bb5 66. Bc2 Nc5 67.
Bc3 Nd3+ 68. Ka3 Kc6 69. Bd1 Kb6 70. Bd4+ Ka5 71. Bc3+ Kb6 72. Bh5 Be8 73. Be2
Bb5 74. Bd1 Bc6 75. Bd4+ Ka5 76. Bc3+ Kb6 77. Ka2 Bb5 78. Ka3 Bc6 79. Bd4+ Ka5
80. Bc2 Bb5 81. Ba7 Ka6 82. Bd4 Ka5 83. Bb3 Nf2 84. Bc3+ Kb6 85. Bd4+ Ka5 86.
Bc5 Nd3 87. Bd4 1/2-1/2

[Event "Petrov Memorial Rapid"]
[Site "Jurmala"]
[Date "2015.03.08"]
[Round "9"]
[White "Dobrov, Vladimir"]
[Black "Shirov, Alexei"]
[Result "0-1"]
[ECO "A11"]
[WhiteElo "2490"]
[BlackElo "2691"]
[Annotator "Robot 8"]
[PlyCount "77"]
[EventDate "2015.??.??"]
[EventCountry "LAT"]
[TimeControl "900+6"]

1. Nf3 d5 2. e3 Nf6 3. c4 c6 4. Nc3 e6 5. b3 Nbd7 6. Qc2 Bd6 7. Bb2 O-O 8. Rg1
b5 9. g4 bxc4 10. bxc4 Rb8 11. Rb1 Nc5 12. Nd4 Bd7 13. cxd5 cxd5 14. Ncb5 Be7
15. g5 Nfe4 16. f3 e5 17. fxe4 exd4 18. Bxd4 Nxe4 19. Bd3 Bxg5 20. Bxg7 Kxg7
21. h4 Bxb5 22. Bxe4 h6 23. Qb2+ d4 24. hxg5 hxg5 25. d3 Re8 26. Qxd4+ Qxd4 27.
exd4 f6 28. Kd2 Bd7 29. Rxb8 Rxb8 30. Kc3 f5 31. Bh1 g4 32. d5 Kf6 33. Kd4 f4
34. Be4 Rb4+ 35. Kc5 Rxe4 36. dxe4 Ke5 37. Rh1 f3 38. Rh5+ Kxe4 39. Rh7 0-1

[Event "Petrov Memorial Rapid"]
[Site "Jurmala"]
[Date "2015.03.08"]
[Round "9"]
[White "Malakhov, Vladimir"]
[Black "Tomashevsky, Evgeny"]
[Result "0-1"]
[ECO "A09"]
[WhiteElo "2706"]
[BlackElo "2745"]
[Annotator "Robot 8"]
[PlyCount "72"]
[EventDate "2015.??.??"]
[EventCountry "LAT"]
[TimeControl "900+6"]

1. Nf3 d5 2. c4 d4 3. g3 Nc6 4. Bg2 e5 5. O-O e4 6. Ne1 h5 7. Bxe4 h4 8. d3 Bh3
9. Ng2 Qd7 10. Bf4 Nf6 11. Bf3 Bd6 12. Qc1 O-O-O 13. Na3 hxg3 14. fxg3 Ng4 15.
Bxd6 cxd6 16. Bxg4 Qxg4 17. Rf2 g5 18. c5 Rhe8 19. Nb5 dxc5 20. Qxc5 Kb8 21.
Re1 Re5 22. Qc4 f5 23. e3 Bxg2 24. Rxg2 dxe3 25. Qxg4 fxg4 26. Na3 Nd4 27. Nc4
Nf3+ 28. Kf1 Nxe1 29. Nxe5 Nxg2 30. Kxg2 Rd5 31. Nxg4 Rxd3 32. Kf3 Rd2 33. h4
gxh4 34. gxh4 e2 35. Kf2 Rxb2 36. h5 Rb4 0-1

[Event "Petrov Memorial Rapid"]
[Site "Jurmala"]
[Date "2015.03.08"]
[Round "10"]
[White "Shirov, Alexei"]
[Black "Sakaev, Konstantin"]
[Result "1/2-1/2"]
[ECO "C67"]
[WhiteElo "2691"]
[BlackElo "2594"]
[Annotator "Robot 8"]
[PlyCount "53"]
[EventDate "2015.??.??"]
[EventCountry "LAT"]
[TimeControl "900+6"]

1. e4 e5 2. Nf3 Nc6 3. Bb5 Nf6 4. O-O Nxe4 5. d4 Nd6 6. Bxc6 dxc6 7. dxe5 Nf5
8. Qxd8+ Kxd8 9. Nc3 Ke8 10. h3 h5 11. Bf4 Be7 12. Rad1 Bd7 13. Ng5 Rd8 14. e6
fxe6 15. Nce4 Rc8 16. Rfe1 Rf8 17. Nh7 Rh8 18. Neg5 c5 19. c3 b6 20. Be5 h4 21.
g4 hxg3 22. fxg3 Rg8 23. g4 Nd6 24. Bg3 Rh8 25. Be5 Rg8 26. Bg3 Rh8 27. Kh2
1/2-1/2

[Event "Petrov Memorial Rapid"]
[Site "Jurmala"]
[Date "2015.03.08"]
[Round "10"]
[White "Naiditsch, Arkadij"]
[Black "Chigaev, Maksim"]
[Result "1-0"]
[ECO "B12"]
[WhiteElo "2711"]
[BlackElo "2497"]
[Annotator "Robot 8"]
[PlyCount "78"]
[EventDate "2015.??.??"]
[EventCountry "LAT"]
[TimeControl "900+6"]

1. e4 c6 2. d4 d5 3. e5 c5 4. Nf3 Bg4 5. c4 cxd4 6. Qxd4 Bxf3 7. gxf3 Nc6 8.
Qxd5 e6 9. Qxd8+ Rxd8 10. Be3 Bb4+ 11. Nd2 Nxe5 12. O-O-O a6 13. Be2 Ne7 14.
Ne4 Nf5 15. Bf4 Ng6 16. Bc7 Rc8 17. Bg3 Be7 18. Kb1 h5 19. c5 h4 20. Bd6 Bxd6
21. cxd6 Kd7 22. Rd2 Nf4 23. Bd1 Rc6 24. Bb3 Rhc8 25. a4 a5 26. Rg1 Rb6 27. Ka2
Rb4 28. Rg4 Ng6 29. Ng5 Nh6 30. Re4 Rxe4 31. fxe4 Rc5 32. Nf3 Ng4 33. Nd4 h3
34. Nxe6 fxe6 35. Bxe6+ Kd8 36. Bxg4 Rc4 37. Bxh3 Rxa4+ 38. Kb1 Rxe4 39. Rc2
Rf4 1-0

[Event "Petrov Memorial Rapid"]
[Site "Jurmala"]
[Date "2015.03.08"]
[Round "10"]
[White "Socko, Bartosz"]
[Black "Van Wely, Loek"]
[Result "0-1"]
[ECO "E32"]
[WhiteElo "2623"]
[BlackElo "2665"]
[Annotator "Robot 8"]
[PlyCount "70"]
[EventDate "2015.??.??"]
[EventCountry "LAT"]
[TimeControl "900+6"]

1. d4 Nf6 2. c4 e6 3. Nc3 Bb4 4. Qc2 O-O 5. a3 Bxc3+ 6. Qxc3 b6 7. Bg5 Bb7 8.
e3 d6 9. Ne2 Nbd7 10. Qd3 h6 11. Bh4 Re8 12. Nc3 Nf8 13. O-O-O Ng6 14. Bg3 e5
15. Qc2 exd4 16. Rxd4 Qe7 17. Nd5 Nxd5 18. cxd5 a6 19. Kb1 Rac8 20. Bd3 Ne5 21.
Bf5 c5 22. dxc6 Rxc6 23. Qb3 Rc5 24. Rhd1 Bxg2 25. Rxd6 Nc4 26. Bd3 Be4 27. Rd4
Bxd3+ 28. Qxd3 Qe6 29. Rd5 Rxd5 30. Qxd5 Qg6+ 31. Ka2 Qc2 32. Qd4 Re4 33. Qd8+
Kh7 34. Rb1 Nxa3 35. Rg1 Nb5 0-1